Cogmind - Beta 15 @@@ ROGUE MODE // 2025.06.20 @ 17:07:54 Player: PoggyBison Result: Self-destructed Performance ------------- Evolutions (2) 1000 Regions Visited (5) 1000 Robots Destroyed (46) 230 Value Destroyed (729) 729 Prototype IDs (0) 0 Alien Tech Used (0) 0 Bonus (0) 0 TOTAL SCORE: 2959 Bonus ------- None Cogmind --------- Core Integrity 298/550 Matter 227/300 Energy 100/100 System Corruption 1% Temperature Cool (9) Movement Core (300) Ox5 Location -8/Materials Parts ------- > --- POWER (2) -------- (None) > --- PROPULSION (3) --- (None) > --- UTILITY (4) ------ Improved Heat Sink Medium Storage Unit Advanced Targeting Computer ECM Suite > --- WEAPON (2) ------- Rocket Launcher > --- INVENTORY (10) --- Small Storage Unit Medium Storage Unit Large Storage Unit Medium Matter Pod (100) Peak State ------------ > --- POWER ------------ Ion Engine Improved Ion Engine > --- PROPULSION ------- Wheel Wheel Wheel > --- UTILITY ---------- Medium Storage Unit Improved Terrain Scanner Advanced Targeting Computer ECM Suite > --- WEAPON ----------- Mini Grenade Launcher Plasma Flamer > --- INVENTORY -------- Wheel Wheel Improved Heat Sink Small Storage Unit Medium Storage Unit Large Storage Unit Medium Matter Pod Autogun Rocket Launcher [Rating: 22] Favorites ----------- Power Ion Engine Engine Ion Engine Propulsion Wheel Treads Light Treads Leg Aluminum Leg Wheel Wheel Utility Small Storage Unit Device ECM Suite Storage Small Storage Unit Processor Advanced Targeting Computer Weapon Medium Laser Energy Gun Medium Laser Ballistic Gun Autogun Launcher Rocket Launcher Special Weapon Plasma Flamer Build | -11 -10 -10 -10 -9 -8 ------- Run | Yrd Mat Min Exi Min Mat Slots Evolved 4 | . . . . . 4 Power 1 | . . . . . 1 Propulsion 1 | . . . . . 1 Utility 2 | . . . . . 2 Weapon . | . . . . . . Parts Attached 31 | 10 4 4 . 5 8 Power 4 | 2 . . . 1 1 Engine 4 | 2 . . . 1 1 Core . | . . . . . . Reactor . | . . . . . . Propulsion 13 | 2 3 3 . 2 3 Treads 3 | 2 . . . 1 . Leg 2 | . . 2 . . . Wheel 8 | . 3 1 . 1 3 Hover . | . . . . . . Flight . | . . . . . . Utility 7 | 3 1 . . . 3 Device 3 | 1 1 . . . 1 Storage 3 | 2 . . . . 1 Processor 1 | . . . . . 1 Hackware . | . . . . . . Protection . | . . . . . . Artifact . | . . . . . . Weapon 7 | 3 . 1 . 2 1 Energy Gun 2 | 2 . . . . . Energy Cannon . | . . . . . . Ballistic Gun 2 | 1 . . . 1 . Ballistic Cannon . | . . . . . . Launcher 2 | . . 1 . . 1 Special Weapon 1 | . . . . 1 . Impact Weapon . | . . . . . . Slashing Weapon . | . . . . . . Piercing Weapon . | . . . . . . Special Melee Weapon . | . . . . . . Unidentified Prototypes . | . . . . . . Parts Lost 11 | . . . . . 11 Power 2 | . . . . . 2 Propulsion 5 | . . . . . 5 Utility 1 | . . . . . 1 Weapon 3 | . . . . . 3 Highest Loss Streak 11 | . . . . . 11 To Critical Strikes . | . . . . . . Average Backups 7 | 6 8 8 8 7 6 Power 1 | . 1 2 2 1 . Propulsion 2 | 4 3 2 2 1 . Utility 2 | . 2 2 3 3 3 Weapon 1 | . . . 1 1 1 Tool/Special . | . . . . . . Unused Backups 16 | 4 4 2 . 3 3 Power 1 | . . 1 . . . Propulsion 8 | 4 3 . . 1 . Utility 7 | . 1 1 . 2 3 Weapon . | . . . . . . Tool/Special . | . . . . . . Average Slot Usage (%) 98 | . 98 100 100 100 90 Engine 14 | . 14 14 14 14 15 Treads 4 | . 4 . . 7 . Leg 5 | . . 7 28 5 . Wheel 17 | . 22 20 . 14 23 Device 14 | . 11 14 14 14 21 Storage 13 | . 16 14 14 14 9 Energy Gun 6 | . 14 14 14 2 . Ballistic Gun 10 | . 14 10 14 11 5 Launcher 3 | . . 3 . 4 4 Special Weapon 5 | . . . . 9 5 Peak Build Rating 22 | 9 8 9 8 14 22 Average Rating 11 | 7 7 8 8 12 18 On Entrance 7 | . 8 8 8 8 13 Naked Turns . | . . . . . . Heaviest Build 29 | 16 16 18 16 19 29 Greatest Support 40 | 40 40 20 20 23 30 Greatest Overweight (x) 6 | . . 1 . . 6 Average Overweight (x) . | . . . . . . Largest Inventory Capacity 10 | 8 8 8 8 8 10 Average Capacity 8 | 7 8 8 8 8 9 Most Carried 10 | 8 8 8 8 8 10 Average Carried 7 | 6 7 8 8 7 6 Final Capacity 10 | 8 8 8 8 8 10 Final Carried 8 | 8 8 8 8 8 4 Class Distribution -------------------- 88% | Mutant 11% | Scavenger-Mutant Dominant Class ---------------- Mutant | -10/Materials Mutant | -10/Mines Mutant | -10/Exiles Mutant | -9/Mines Scavenger-Mutant | -8/Materials Resources | -11 -10 -10 -10 -9 -8 ----------- Run | Yrd Mat Min Exi Min Mat Matter Collected 809 | 401 16 146 . 165 81 Remotely . | . . . . . . Salvage Created 1010 | 256 16 251 . 315 172 Parts 79 | 24 2 17 . 21 15 Haulers Intercepted . | . . . . . . Recyclers Shooed 1 | . . . . 1 . Parts Field Recycled . | . . . . . . Retrieved Matter . | . . . . . . Parts Self-Destructed . | . . . . . . Prevented . | . . . . . . Kills | -11 -10 -10 -10 -9 -8 ------- Run | Yrd Mat Min Exi Min Mat Combat Hostiles Destroyed 20 | . . 5 . 3 12 Guns 4 | . . 4 . . . AOE 14 | . . . . 3 11 Classes Destroyed 10 | 3 . 2 . 1 4 Worker 7 | 2 1 2 . 1 1 Builder 4 | . . . . 3 1 Tunneler 11 | 6 . 2 . 3 . Recycler 3 | 1 . . . 2 . Mechanic 1 | . . . . . 1 Swarmer 9 | . . 2 . . 7 Grunt 8 | . . 3 . 3 2 Duelist 1 | . . . . . 1 Sentry 1 | . . . . . 1 Hunter 1 | . . . . . 1 Best Kill Streak 10 | 3 1 4 . 3 10 Combat Bots Only 10 | . . 2 . 2 10 Max Kills in Single Turn 5 | 1 1 1 . 2 5 Gunslinging . | . . . . . . Exploded 5 | . . . . 2 5 Melee . | . . . . . . Uniques/NPCs Destroyed . | . . . . . . Combat | -11 -10 -10 -10 -9 -8 -------- Run | Yrd Mat Min Exi Min Mat Hostile Shots Fired 167 | . . 27 . 24 116 Missed 50 | . . 10 . 7 33 Hits 117 | . . 17 . 17 83 Melee 1 | . . . . . 1 Projectile 116 | . . 17 . 17 82 Critical Strikes 1 | . . 1 . . . Damage Taken 1431 | . . 225 . 223 983 Core 305 | . . 23 . 30 252 Absorbed by Shields . | . . . . . . Regen/Repaired (Parts) 9 | . . . . . 9 Core Remaining (%) 89 | 100 . . . 78 . Volleys Fired 110 | 18 2 28 7 35 20 Largest 2 | 2 2 2 2 2 2 Hottest 123 | 90 70 70 70 123 100 Shots Fired 162 | 35 4 40 10 49 24 Gun 118 | 35 4 40 10 23 6 Cannon . | . . . . . . Launcher 10 | . . . . 2 8 Special 34 | . . . . 24 10 Kinetic 45 | 6 2 12 3 16 6 Thermal 95 | 17 2 28 7 31 10 Explosive 10 | . . . . 2 8 Electromagnetic 12 | 12 . . . . . Robot Hit Streak 8 | 7 1 8 . 6 4 Robot Miss Streak 5 | 5 1 3 . 3 3 Penetration Max . | . . . . . . Secondary Targets . | . . . . . . Shots Hit Robots 91 | 20 2 26 . 27 16 Core Hits 66 | 10 1 13 . 13 29 Critical Kills . | . . . . . . Critical Parts Destroyed . | . . . . . . Critical Strikes 13 | 2 . 2 . 6 3 Burn 13 | 2 . 2 . 6 3 Melee Attacks . | . . . . . . Impact . | . . . . . . Slashing . | . . . . . . Piercing . | . . . . . . Sneak Attacks . | . . . . . . Combat Hostiles . | . . . . . . Follow-up Attacks . | . . . . . . Damage Inflicted 2427 | 269 25 325 . 546 1262 Guns 824 | 259 25 325 . 194 21 Cannons . | . . . . . . Explosions 1288 | . . . . 196 1092 Melee . | . . . . . . Ramming 52 | 10 . . . . 42 Kinetic 309 | 39 25 66 . 158 21 Thermal 671 | 113 . 259 . 192 107 Explosive 1288 | . . . . 196 1092 Electromagnetic 107 | 107 . . . . . Impact . | . . . . . . Slashing . | . . . . . . Piercing . | . . . . . . Highest Corruption 1 | . . . . . 1 Average Corruption 1 | . . . . . 1 Corruption Purged . | . . . . . . Corruption Blocked . | . . . . . . Overload Shots . | . . . . . . Overflow Damage 7 | . . . . . 7 Projectiles . | . . . . . . Explosions 7 | . . . . . 7 Melee . | . . . . . . Knockbacks . | . . . . . . Impact . | . . . . . . Kinetic . | . . . . . . Secondary . | . . . . . . Self-Inflicted Damage 139 | . . . . . 139 Shots 5 | . . . . . 5 Rammed 8 | 3 . . . . 5 Targets Rammed 8 | 3 . . . . 5 Kicked . | . . . . . . Crushed . | . . . . . . Highest Temperature 209 | 154 18 132 49 205 209 Average Temperature 59 | 50 10 47 19 63 102 Received Heat Transfer 357 | . . 126 . 123 108 Siege Activations . | . . . . . . Martial Activations . | . . . . . . Shielding Activations . | . . . . . . Robots Disrupted . | . . . . . . Combat Hostiles . | . . . . . . Robots Corrupted . | . . . . . . Combat Hostiles . | . . . . . . Parts Fried . | . . . . . . Impact Corruptions . | . . . . . . Robots Melted 4 | . . 1 . 1 2 Combat Hostiles 2 | . . 1 . . 1 Parts Melted 10 | 2 . 5 . 2 1 Heat Transferred 4471 | 481 . 925 . 1945 1120 Parts Sabotaged . | . . . . . . Parts Stolen . | . . . . . . Parts Stripped . | . . . . . . Power Chain Reactions . | . . . . . . Alert | -11 -10 -10 -10 -9 -8 ------- Run | Yrd Mat Min Exi Min Mat Maximum Alert Level 1 | . . . . . 1 Low Security (%) 99 | 100 100 100 . 100 99 Level 1 . | . . . . . . Level 2 . | . . . . . . Level 3 . | . . . . . . Level 4 . | . . . . . . Level 5 . | . . . . . . High Security . | . . . . . . Max Security . | . . . . . . Peak Influence 257 | 15 5 60 . 76 257 Initial . | . . . . . . Average 14 | 1 . 36 . 13 18 Influence Increases 762 | 45 5 150 . 141 421 Destroy 0b10 Robot/C 400 | . . 100 . 60 240 Destroy 0b10 Robot/NC 130 | 45 5 20 . 45 15 Destroy Leader 90 | . . 30 . 10 50 Disable Machine 30 | . . . . . 30 Destroy Structure 82 | . . . . 26 56 Partial Spotted 15 | . . . . . 15 Lose Combat Pursuer 15 | . . . . . 15 Influence Decreases 505 | 45 5 130 20 141 164 Entered New Map 20 | . . . 20 . . Time Decay 386 | 45 5 130 . 141 65 Lost Part 99 | . . . . . 99 Squads Dispatched 1 | . 1 . . . . Investigation . | . . . . . . Extermination . | . . . . . . Reinforcement 1 | . 1 . . . . Assault . | . . . . . . Garrison . | . . . . . . Intercept . | . . . . . . Searches Triggered . | . . . . . . Construction Impeded . | . . . . . . Haulers Reinforced . | . . . . . . Active Scanning Responses . | . . . . . . Cargo Convoy Interrupts . | . . . . . . Stealth | -11 -10 -10 -10 -9 -8 --------- Run | Yrd Mat Min Exi Min Mat Distress Signals 2 | . 1 . . . 1 Communications Jammed . | . . . . . . Distress Signals . | . . . . . . Times Spotted 36 | . 3 8 . 3 22 Peak Tracking Total 16 | . 4 3 . 3 16 Tactical Retreats 5 | . . 2 . . 3 Traps | -11 -10 -10 -10 -9 -8 ------- Run | Yrd Mat Min Exi Min Mat Traps Triggered . | . . . . . . Indirectly . | . . . . . . Trap Hack Attempts . | . . . . . . Triggered . | . . . . . . Disarmed . | . . . . . . Reprogrammed . | . . . . . . Reused . | . . . . . . Traps Extracted . | . . . . . . Installed . | . . . . . . Triggered . | . . . . . . Machines | -11 -10 -10 -10 -9 -8 ---------- Run | Yrd Mat Min Exi Min Mat Machines Disabled 2 | . . . . . 2 Max in Single Turn 1 | . . . . . 1 Machines Repaired . | . . . . . . Machines Dismantled . | . . . . . . Machines Sabotaged . | . . . . . . Overloaded Fab Kills . | . . . . . . Hacking | -11 -10 -10 -10 -9 -8 --------- Run | Yrd Mat Min Exi Min Mat Machines Accessed 4 | . 1 1 . . 2 Terminals 3 | . 1 1 . . 1 Fabricators . | . . . . . . Repair Stations 1 | . . . . . 1 Recycling Units . | . . . . . . Scanalyzers . | . . . . . . Garrison Access . | . . . . . . Total Hacks 8 | . 2 2 . . 4 Successful 5 | . 1 1 . . 3 Failed 3 | . 1 1 . . 1 Catastrophic . | . . . . . . Database Lockouts . | . . . . . . Manual . | . . . . . . Terminals 6 | . 2 2 . . 2 Fabricators . | . . . . . . Repair Stations 2 | . . . . . 2 Recycling Units . | . . . . . . Scanalyzers . | . . . . . . Garrison Access . | . . . . . . Terminal Hacks 3 | . 1 1 . . 1 Record 2 | . 1 . . . 1 Dispatch Records 1 | . . 1 . . . Fabricator Hacks . | . . . . . . Repair Station Hacks 2 | . . . . . 2 Scan Component 1 | . . . . . 1 Repair 1 | . . . . . 1 Recycling Unit Hacks . | . . . . . . Scanalyzer . | . . . . . . Garrison Access Hacks . | . . . . . . Unauthorized Hacks . | . . . . . . Terminals . | . . . . . . Fabricators . | . . . . . . Repair Stations . | . . . . . . Recycling Units . | . . . . . . Scanalyzers . | . . . . . . Garrison Access . | . . . . . . Data Cores Recovered . | . . . . . . Used . | . . . . . . Hacking Detections 4 | . 1 1 . . 2 Full Trace Events . | . . . . . . Feedback Events . | . . . . . . Feedback Blocked . | . . . . . . Robot Schematics Acquired . | . . . . . . Robots Built . | . . . . . . Authchips . | . . . . . . Time . | . . . . . . Total Robot Build Rating . | . . . . . . Part Schematics Acquired . | . . . . . . Parts Built . | . . . . . . Authchips . | . . . . . . Time . | . . . . . . Total Part Build Rating . | . . . . . . Parts Repaired 1 | . . . . . 1 Time 26 | . . . . . 26 Parts Recycled . | . . . . . . Recycled Matter . | . . . . . . Retrieved Matter . | . . . . . . Retrieved Components . | . . . . . . Parts Scanalyzed . | . . . . . . Part Schematics Acquired . | . . . . . . Parts Damaged . | . . . . . . Bothacking | -11 -10 -10 -10 -9 -8 ------------ Run | Yrd Mat Min Exi Min Mat Used RIF Installer . | . . . . . . Robots Hacked . | . . . . . . Non-combat . | . . . . . . Combat . | . . . . . . Robot Hacks Applied . | . . . . . . Relay Couplers Released . | . . . . . . Fabnet Peak Effective % . | . . . . . . Robots Rewired . | . . . . . . Allies Hacked . | . . . . . . Hacks Repelled . | . . . . . . Allies | -11 -10 -10 -10 -9 -8 -------- Run | Yrd Mat Min Exi Min Mat Total Allies . | . . . . . . Largest Group . | . . . . . . Highest-Rated Group . | . . . . . . Highest-Rated Ally . | . . . . . . Total Orders . | . . . . . . Ally Attacks . | . . . . . . Total Damage . | . . . . . . Kills . | . . . . . . Allies Corrupted . | . . . . . . Allies Melted . | . . . . . . Intel | -11 -10 -10 -10 -9 -8 ------- Run | Yrd Mat Min Exi Min Mat Active Infowar (turns) 1386 | 125 161 260 76 578 186 Terrain 251 | 125 . . . . 126 ECM 1261 | . 161 260 76 578 186 Robot Analysis Total . | . . . . . . Derelict Logs Recovered 1 | . . . . 1 . Drone Launches . | . . . . . . Drone Recoveries . | . . . . . . Exploration | -11 -10 -10 -10 -9 -8 ------------- Run | Yrd Mat Min Exi Min Mat Turns Passed 1595 | 263 195 260 76 578 223 Spaces Moved 1048 | 114 197 188 50 375 124 Core 6 | 4 . . . . 2 Treads 298 | 110 15 . . 173 . Legs 171 | . . 60 50 61 . Wheels 573 | . 182 128 . 141 122 Hover . | . . . . . . Flight . | . . . . . . Fastest Speed 50 | 50 80 80 120 80 80 Average Speed 109 | 156 86 93 120 123 85 Slowest Speed 350 | 160 160 190 120 160 350 Overloaded Moves . | . . . . . . Propulsion Burnouts . | . . . . . . Robots Hopped . | . . . . . . Potential Cave-ins . | . . . . . . Cave-ins Triggered . | . . . . . . Exploration Rate (%) 24 | 6 30 24 9 62 15 Regions Visited 5 Branch Regions 3 Pre-discovered Areas . | . . . . . . Known Exits Taken . | . . . . . . Unknown Exits Taken 5 | 1 1 1 1 1 . Scrap Searched 1 | . . . . 1 . Spaces Dug . | . . . . . . Terrain Destroyed 90 | . . . . 27 63 Melee . | . . . . . . Projectile . | . . . . . . AOE 90 | . . . . 27 63 Terrain Rammed . | . . . . . . Walls Destroyed . | . . . . . . Machines Disabled . | . . . . . . Actions | -11 -10 -10 -10 -9 -8 --------- Run | Yrd Mat Min Exi Min Mat Total 1317 | 163 220 232 56 434 212 Wait 52 | . 5 4 . . 43 Move 1043 | 113 196 187 49 374 124 Hop . | . . . . . . Pick Up 36 | 13 5 3 . 9 6 Fast Attach 8 | 7 1 . . . . Attach 16 | 2 2 . . 2 10 Detach 2 | 1 . . . . 1 Swap 17 | 1 2 7 . 5 2 Drop 25 | 5 7 3 . 9 1 Fire 110 | 18 2 28 7 35 20 Melee . | . . . . . . Ram 5 | . . . . . 5 Kick . | . . . . . . Crush 3 | 3 . . . . . Escape Stasis . | . . . . . . Rewire . | . . . . . . Trap . | . . . . . . Miscellaneous . | . . . . . . Route ------- -11/Scrapyard -10/Materials -10/Mines -10/Exiles -9/Mines -8/Materials (discovered 1 exit: Sto) History --------- Turn | Location | Event 12 | -11/Scrapyard | Discovered new exit (range 15) 264 | -11/Scrapyard | Entered Materials 320 | -10/Materials | Build established: Mutant 444 | -10/Materials | Discovered new exit (range 7) 459 | -10/Materials | Entered Mines 466 | -10/Mines | Received a Rocket Launcher from a helpful Derelict 591 | -10/Mines | Deemed a non-threat by the Exiles lab entrance 592 | -10/Mines | Discovered new exit (range 5) 719 | -10/Mines | Entered Exiles 754 | -10/Exiles | Discovered new exit (range 15) 795 | -10/Exiles | Entered Mines 880 | -9/Mines | Found DCF Scrap (12 items) 946 | -9/Mines | A weapon hastily lodged in a ceiling crevice suddenly fell to the ground 1281 | -9/Mines | Discovered new exit (range 11) 1308 | -9/Mines | Learned 4 Materials zone layouts 1373 | -9/Mines | Entered Materials 1373 | -8/Materials | Evolved 4 slots: Power x1, Propulsion x1, Utility x2 1374 | -8/Materials | Identified exit to Storage 1428 | -8/Materials | Repaired Wheel 1596 | -8/Materials | Self-destructed Last Messages --------------- 01569_ Destabilizing: System corrupted (+1). 01570_ Slammed into S-10 Pest. 01572_ Wheel destroyed. 01576_ Slammed into S-10 Pest. 01579_ Mni. Grenade Launcher destroyed. 01579_ Wheel destroyed. 01585_ Autogun destroyed. 01588_ S-10 Pest destroyed. 01588_ Destroyed Flight Unit. 01588_ S-10 Pest destroyed. 01588_ Destroyed Flight Unit. 01588_ S-10 Pest destroyed. 01588_ L-31 Rogue destroyed. [Achievement: Quick And Dirty] 01588_ Ion Engine destroyed. 01590_ S-10 Pest destroyed. 01590_ Electrolysis Chamber disabled. 01594_ S-10 Pest destroyed. 01594_ Y-45 Defender destroyed. 01594_ G-47 Trooper destroyed. Map ----- +----------------------------------------------------+ | | | | | | | ###??????????????????????????????? | | # ######?????????????????????????? | | #?????????????????????????? | | # ##??#######???????????????? | | [ #??# """ #??########?????? | | #??# "Y" #??# """ #?????? | | ## ##### #### """ #?????? | | # # # """ # # """ #?????? | | ######+"# # """ # # #?????? | | ## # """ / / #?????? | | ## # *%==# # #?##??? | | """ ##### #####+### #### | | """ #??# #### # # | | """ + "" # | | """ g # "G # | | """ #### ## # "" # | | * #??###### g # | | #??????## % """ # | | ###+##### ####???## [ "" # | | ?## #???# # ?[ Yb[ "" # | | ### #???# # ?"" [[ # % # | | #???# # ????[[ = """ # | | #####???# ? ?????????# @ """ # | | ????????# ? ???????# """ # | | ######### ? ????????### # # | | ????????# ? ??????????# #######? | | ????????? ? ??????????# #??????? | | ???????????????????????# ??????? | | ???????????????????????# ??????? | | ???????????????????????# ??????? | | ???????????????????????# ??????? | | ???????????????????????#^ ??????? | | ???????????????????????# ??????? | | ???????????????????????# #??????? | | ???????????????????????# ???????? | | ???????????????????????? ???????? | | ???????????????????????? ???????? | | ???????????????????????? ???????? | | ?????????????????????????????????? | | ?????????????????????????????????? | | ?????????????????????????????????? | | ?????????????????????????????????? | | ?????????????????????????????????? | | ?????????????????????????????????? | | ?????????????????????????????????? | | ?????????????????????????????????? | | ?????????????????????????????????? | +----------------------------------------------------+ Best States ------------- Heat Dissipation 45 Energy Generation 17 Energy Capacity 415 Matter Stores 400 Matter Capacity 400 Sight Range 16 Terrain Scan Range 16 Terrain Scan Density 10 ECM Strength 1 Evasion (%) 55 Targeting Accuracy 8 Recoil Reduction 2 Item Schematics ----------------- None Robot Schematics ------------------ None Fabricated ------------ Nothing Repaired ---------- Wheel | 77% | -8/Materials Alien Tech Used ----------------- None Achievements -------------- Quick And Dirty Challenges ------------ None Game ------ Seed StormLaserBallwheel Manual? 0 Play Time 00:54:20 Cumulative 8.3 hours Start 2025.06.20 @ 14:30:31 End 2025.06.20 @ 17:07:54 Sessions 3 Manual Loads 0 Difficulty Rogue Special Mode None Game No. 5 Rogue 5 Adventurer 0 Explorer 0 Win Type - Total 0 Types 0/0/0/0/0/0/0/0/0/0 Lore% 2 Gallery% 9 Achievement% 13 Wizard Run 0 Options --------- Layout 0 ASCII 0 Keyboard 1 Movement Numpad Keybinds 0 Fullscreen 1 Font 18/SmallcapsGlow Map View 76x50 Zoom Use 0% Tactical HUD 1 Map Filters NONE Filters NONE Steam 1 RUN: 3a293c50-95c0-4406-a326-7ca8cc4d9eed